bitfinex-derivatives/quotes_SOLF0:USTF0_20250929
["timestamp","ask_amount","ask_price","bid_price","bid_amount"]
[1759112688747,7.66,210.48,210.42,7.4]
[1759112688953,7.66,210.48,210.42,123.8]
[1759112689153,4.2746,210.46,210.42,123.8]
[1759112689349,7.66,210.46,210.42,123.8]
[1759112689649,4.2749,210.44,210.43,7.4]
[1759112690354,4.2744,210.47,210.43,7.4]
[1759112690746,11.9344,210.47,210.43,7.4]
[1759112691245,7.66,210.46,210.43,7.4]
[1759112692451,66.4903,210.47,210.42,0.27482]
[1759112692650,75.52834324,210.49,210.42,7.67482]
[1759112692950,4.2748,210.45,210.42,7.67482]
[1759112693650,7.66,210.43,210.42,2e-05]
[1759112694045,4.2751,210.44,210.42,7.31002]
[1759112694245,4.2751,210.44,210.42,2e-05]
[1759112695448,4.2745,210.46,210.42,2e-05]
[1759112695853,8.5444,210.58,210.42,2e-05]
[1759112695854,7.57,210.68,210.53,66.4691]
[1759112696065,7.57,210.68,210.62,1.38464324]
[1759112696745,7.57,210.68,210.65,1.38464324]
[1759112696947,1.41702748,210.71,210.65,1.38464324]
[1759112697149,1.41702748,210.71,210.68,1.38464324]
[1759112697456,8.98702748,210.71,210.68,1.38464324]
[1759112698249,8.98702748,210.71,210.64,7.31]
[1759112698455,7.57,210.7,210.67,1.38464324]
[1759112699156,7.57,210.7,210.64,8.69464324]
[1759112700354,1.41702748,210.71,210.64,8.69464324]
[1759112701052,7.57,210.78,210.68,1.38464324]
[1759112701354,1.38464324,210.76,210.69,7.31]
[1759112702658,4.2686,210.75,210.69,7.31]
[1759112703061,1.38464324,210.74,210.67,92.4]
[1759112703260,1.38464324,210.74,210.65,8.69464324]
[1759112703261,4.2691,210.73,210.65,7.31]
[1759112703462,7.57,210.72,210.65,126.33]
[1759112704765,8.95464324,210.68,210.64,14.48219273]
[1759112704959,7.57,210.67,210.61,7.31]
[1759112705755,1.38464324,210.66,210.57,1.38464324]
[1759112706063,8.95464324,210.64,210.58,52.14]
[1759112706463,7.57,210.64,210.58,52.14]
[1759112706663,8.95464324,210.64,210.58,52.14]
[1759112707066,4.2711,210.63,210.58,52.14]
[1759112707462,4.2711,210.63,210.57,7.31]
[1759112707661,1.38464324,210.62,210.57,7.31]
[1759112707970,7.57,210.6,210.56,14.30895136]
[1759112708159,7.57,210.6,210.54,118.96]
[1759112708766,4.2718,210.59,210.54,126.27]
[1759112708970,4.2718,210.59,210.55,7.31]
[1759112709362,4.2718,210.59,210.54,7.31]
[1759112709562,4.2718,210.59,210.53,7.31]
[1759112709767,4.2718,210.59,210.53,126.23]
[1759112710769,4.2718,210.59,210.53,140.17489454]
[1759112710770,5.65644324,210.59,210.53,140.17489454]
[1759112710966,4.2718,210.59,210.53,21.27489454]
[1759112711270,1.38464324,210.58,210.53,21.27489454]
[1759112713066,4.2722,210.57,210.53,21.27489454]
[1759112713265,11.4822,210.57,210.53,21.27489454]
[1759112713977,66.4703,210.53,210.5,6.96780332]
[1759112714175,8.59464324,210.52,210.45,54.98]
[1759112714369,7.21,210.52,210.45,54.98]
[1759112715475,66.4642,210.55,210.46,7.69]
[1759112716272,4.2733,210.52,210.46,7.69]
[1759112716875,4.2733,210.52,210.47,11.649245]
[1759112717067,4.2733,210.52,210.48,3.959245]
[1759112717271,4.2733,210.52,210.49,3.959245]
[1759112717471,4.2733,210.52,210.5,3.959245]
[1759112717777,4.2733,210.52,210.51,3.959245]
[1759112718175,11.4833,210.52,210.51,3.959245]
[1759112718473,11.4833,210.52,210.51,4.5e-05]
[1759112718672,11.4833,210.52,210.46,7.69]
[1759112719677,66.4769,210.51,210.46,14.40550863]
[1759112719880,73.6929,210.49,210.42,7.69002]
[1759112721677,4.2742,210.47,210.42,2e-05]
[1759112722885,4.2747,210.45,210.42,13.95086886]
[1759112723182,4.2747,210.45,210.42,21.64086886]
[1759112723381,4.2747,210.45,210.42,13.95086886]
[1759112723581,4.2751,210.43,210.42,13.95086886]
[1759112723780,11.4851,210.43,210.42,2e-05]
[1759112723980,4.2751,210.43,210.42,2e-05]
[1759112724176,66.4957,210.45,210.35,118.76]
[1759112724177,4.2757,210.4,210.35,118.76]
[1759112724379,4.2757,210.4,210.35,126.21]
[1759112724579,4.2757,210.4,210.36,7.45]
[1759112725285,4.2757,210.4,210.36,21.85236309]
[1759112725483,4.2757,210.4,210.36,7.45]
[1759112726786,11.6852,210.43,210.36,7.45]
[1759112727381,4.2746,210.46,210.36,2.16595512]
[1759112727581,4.2746,210.46,210.37,7.45]
[1759112727784,4.2746,210.46,210.38,7.45]
[1759112727985,4.274,210.49,210.38,7.45]
[1759112728191,4.274,210.49,210.39,7.45]
[1759112728483,7.41,210.52,210.39,7.45]
[1759112728484,4.2743,210.47,210.39,7.45]
[1759112729688,2.16595512,210.54,210.38,8.19118114]
[1759112729689,11.6828,210.55,210.46,2.16595512]
[1759112729880,11.6828,210.55,210.47,126.27]
[1759112730485,11.6828,210.55,210.48,119.32]
[1759112731780,4.2731,210.53,210.48,7.45]
[1759112731986,11.6831,210.53,210.48,7.45]
[1759112733690,11.6831,210.53,210.47,7.45]
[1759112734895,4.2731,210.53,210.47,7.45]
[1759112736692,4.2731,210.53,210.45,3.91375237]
[1759112736693,66.4798,210.5,210.45,3.91375237]
[1759112736897,7.41,210.49,210.4,7.45]
[1759112737796,4.2744,210.47,210.4,7.45]
[1759112738601,4.2747,210.45,210.39,11.36375237]
[1759112738801,66.4898,210.47,210.39,126.63]
[1759112739101,4.2751,210.43,210.39,119.18]
[1759112739298,66.4865,210.48,210.39,126.63]
[1759112740199,4.2722,210.57,210.47,4.2742]
[1759112740404,66.4195,210.7,210.55,7.45]
[1759112740596,7.41,210.66,210.57,7.45]
[1759112741602,4.2712,210.62,210.57,7.45]
[1759112742107,11.6812,210.62,210.57,7.45]
[1759112742412,11.6812,210.62,210.53,11.36375237]
[1759112742601,11.6812,210.62,210.53,132.26375237]
[1759112742800,11.6812,210.62,210.53,171.09484722]
[1759112743607,11.6812,210.62,210.53,50.19484722]
[1759112744008,11.6812,210.62,210.53,171.03484722]
[1759112744408,11.6812,210.62,210.54,3.91375237]
[1759112746113,4.2716,210.6,210.54,3.91375237]
[1759112747105,4.2721,210.58,210.54,3.91375237]
[1759112747410,11.6821,210.58,210.53,7.45]
[1759112748510,66.4259,210.67,210.52,3.91375237]
[1759112748511,7.41,210.77,210.65,7.45]
[1759112748806,7.41,210.74,210.65,7.45]
[1759112749006,7.41,210.72,210.62,77.64]
[1759112749208,66.413,210.71,210.62,77.64]
[1759112750007,66.413,210.71,210.6,11.36500115]
[1759112750511,7.41,210.72,210.61,3.91500115]
[1759112750814,73.8193,210.72,210.61,3.91500115]
[1759112751317,4.2701,210.67,210.59,3.91500115]
[1759112751515,4.2701,210.67,210.58,3.91500115]
[1759112753405,4.2706,210.65,210.57,11.36500115]
[1759112753605,4.2706,210.65,210.58,3.91500115]
[1759112754115,4.2706,210.65,210.57,11.36500115]
[1759112754617,4.2706,210.65,210.57,49.69127174]
[1759112755116,4.271,210.63,210.57,3.91500115]
[1759112755312,4.271,210.63,210.56,3.91500115]
[1759112755512,74.3562,210.64,210.54,3.91500115]
[1759112755712,66.4386,210.63,210.54,3.91500115]
[1759112756115,4.2714,210.61,210.54,3.91500115]
[1759112758839,12.1914,210.61,210.53,11.37500115]
[1759112759019,4.2718,210.59,210.53,11.37500115]
[1759112761418,7.92,210.68,210.54,11.7326]
[1759112761618,7.92,210.68,210.57,3.91500115]
[1759112761822,7.92,210.68,210.59,11.37500115]
[1759112762017,7.92,210.68,210.58,3.91500115]
[1759112762420,7.92,210.68,210.56,3.91500115]
[1759112762620,12.19,210.68,210.56,3.91500115]
[1759112762919,7.92,210.68,210.56,3.91500115]
[1759112763322,4.2704,210.66,210.56,3.91500115]
[1759112763522,66.4252,210.67,210.56,3.91500115]
[1759112764627,4.2708,210.64,210.56,3.91500115]
[1759112765318,4.2702,210.67,210.57,11.37500115]
[1759112765513,4.2702,210.67,210.57,3.91500115]
[1759112765721,74.3304,210.72,210.6,3.91500115]
[1759112766419,7.92,210.72,210.61,7.46]
[1759112767328,4.2693,210.71,210.61,7.46]
[1759112768019,4.2697,210.69,210.61,7.46]
[1759112770427,4.2697,210.69,210.61,11.37500115]
[1759112771727,4.2697,210.69,210.61,15.64630115]
[1759112772231,66.3843,210.8,210.63,7.3]
[1759112772432,7.94,210.78,210.64,11.21500115]
[1759112772631,7.94,210.78,210.65,7.3]
[1759112772632,4.2685,210.75,210.65,7.3]
[1759112772832,4.2685,210.75,210.66,11.21500115]
[1759112773129,12.2079,210.78,210.67,4.2701]
[1759112773431,7.94,210.78,210.67,4.2701]
[1759112773932,4.2685,210.76,210.66,11.21500115]
[1759112774326,4.2685,210.76,210.67,3.91500115]
[1759112774833,7.94,210.74,210.66,11.21500115]
[1759112775121,66.4065,210.73,210.64,3.91500115]
[1759112775328,4.2698,210.69,210.62,11.21500115]
[1759112775529,7.94,210.7,210.62,11.21500115]
[1759112776724,4.2701,210.68,210.62,11.21500115]
[1759112778332,12.2101,210.68,210.63,11.21500115]
[1759112779434,12.2101,210.68,210.63,7.3]
[1759112780135,7.94,210.67,210.63,7.3]
[1759112780524,7.94,210.69,210.62,3.91500115]
[1759112780833,7.94,210.69,210.6,3.91500115]
[1759112781427,7.94,210.69,210.61,3.91500115]
[1759112781632,12.2105,210.66,210.61,3.91500115]
[1759112781933,7.94,210.65,210.61,3.91500115]
[1759112783134,7.94,210.65,210.62,3.91500115]
[1759112784237,7.94,210.65,210.63,3.91500115]
[1759112784430,7.43,210.64,210.63,3.91500115]
[1759112785236,7.43,210.64,210.6,5.22000153]
[1759112785936,4.271,210.63,210.6,5.22000153]
[1759112786134,66.4287,210.66,210.62,3.94250999]
[1759112786334,7.43,210.63,210.62,3.94250999]
[1759112786536,7.43,210.63,210.58,5.22000153]
[1759112786737,1.38478707,210.6,210.56,5.22000153]
[1759112786938,1.38478707,210.6,210.55,5.22000153]
[1759112787142,1.38478707,210.6,210.54,5.22000153]
[1759112787734,7.43,210.59,210.54,5.22000153]
[1759112787940,7.43,210.56,210.53,5.22000153]
[1759112788342,7.43,210.56,210.5,8.95832146]
[1759112788343,7.43,210.55,210.51,5.22000153]
[1759112788543,8.81478707,210.56,210.5,13.04000153]
[1759112789545,4.2725,210.55,210.5,13.04000153]
[1759112789741,11.7025,210.55,210.5,13.04000153]
[1759112790644,11.703,210.53,210.5,5.22000153]
[1759112791440,11.703,210.53,210.49,5.22000153]
[1759112791749,7.43,210.57,210.5,5.22000153]
[1759112791944,7.43,210.57,210.51,13.04000153]
[1759112792150,4.2721,210.57,210.53,7.82]
[1759112793250,11.7021,210.57,210.52,5.22000153]
[1759112793553,4.271,210.63,210.51,5.22000153]
[1759112793748,1.38478707,210.63,210.54,5.22000153]
[1759112793948,1.38478707,210.63,210.54,6.6047886]
[1759112794251,4.2713,210.62,210.54,6.6047886]
[1759112795255,4.2713,210.62,210.55,7.82]
[1759112796650,4.2713,210.62,210.55,13.04000153]
[1759112796953,7.43,210.65,210.55,13.04000153]
[1759112797148,7.43,210.7,210.57,7.82]
[1759112797344,7.43,210.7,210.6,13.04000153]
[1759112797545,11.6996,210.7,210.6,13.04000153]
[1759112798348,11.6996,210.7,210.6,5.22000153]
[1759112798650,11.6996,210.7,210.61,12.0913]
[1759112798854,11.6996,210.7,210.61,17.31130153]
[1759112799154,11.6996,210.7,210.61,12.0913]
[1759112799354,11.6996,210.7,210.61,17.31130153]
[1759112799556,4.2691,210.73,210.62,7.82]
[1759112800049,4.2691,210.73,210.63,7.82]
[1759112800456,4.2685,210.75,210.66,7.82]
[1759112800858,8.21308504,210.78,210.66,7.82]
[1759112800859,12.48108504,210.78,210.66,13.04000153]
[1759112802454,12.48108504,210.78,210.66,7.82]
[1759112802755,4.2683,210.76,210.66,7.82]
[1759112804151,4.2683,210.76,210.67,87.72]
[1759112804755,4.2683,210.76,210.66,129.3]
[1759112807561,4.2683,210.76,210.67,7.82]
[1759112808458,11.6987,210.74,210.67,21.9663464]
[1759112808654,11.6987,210.74,210.67,14.1463464]
[1759112808952,11.6987,210.74,210.64,63.64]
[1759112810860,4.2691,210.72,210.64,7.82]
[1759112811057,4.2691,210.72,210.64,113.76]
[1759112811254,66.4059,210.73,210.64,7.82]
[1759112811559,7.43,210.72,210.64,22.03098817]
[1759112811757,7.43,210.72,210.64,7.82]
[1759112812260,7.43,210.69,210.6,13.04000153]
[1759112813358,4.2699,210.69,210.61,7.82]
[1759112813559,4.2699,210.69,210.61,21.74542067]
[1759112813755,4.2699,210.69,210.61,7.82]
[1759112815557,4.2693,210.72,210.62,7.54]
[1759112815758,7.58,210.74,210.63,7.54]
[1759112815958,7.58,210.74,210.65,7.54]
[1759112816157,4.2687,210.75,210.66,7.54]
[1759112816362,4.2687,210.75,210.69,7.54]
[1759112817268,7.58,210.73,210.69,7.54]
[1759112818354,4.2682,210.77,210.68,1.38301349]
[1759112818560,4.2682,210.77,210.7,1.38301349]
[1759112819660,4.2685,210.76,210.69,7.54]
[1759112820157,4.2687,210.75,210.69,7.54]
[1759112824265,1.38301349,210.77,210.69,7.54]
[1759112824266,4.2681,210.77,210.69,7.54]
[1759112824459,7.58,210.78,210.69,7.54]
[1759112825565,11.8481,210.78,210.69,11.8095]
[1759112825968,11.8481,210.78,210.7,8.92301349]
[1759112826158,1.38301349,210.8,210.7,8.92301349]
[1759112826666,11.8465,210.85,210.75,7.54]
[1759112826870,13.22951349,210.85,210.76,1.38301349]
[1759112827265,11.8465,210.85,210.75,7.54]
[1759112827462,4.2669,210.83,210.75,7.54]
[1759112828360,11.8473,210.81,210.75,7.54]
[1759112828561,11.8473,210.81,210.73,1.38301349]
[1759112829057,11.8473,210.81,210.74,7.54]
[1759112829461,4.2669,210.84,210.74,7.54]
[1759112829669,4.2669,210.84,210.76,7.54]
[1759112831172,4.2671,210.82,210.76,7.54]
[1759112833868,11.5375,210.81,210.76,7.54]
[1759112834067,4.2675,210.81,210.75,7.23]
[1759112836870,7.27,210.77,210.7,7.23]
[1759112837176,7.27,210.8,210.7,7.23]
[1759112838168,66.3879,210.79,210.7,7.23]
[1759112838375,66.3879,210.79,210.67,12.67641778]
[1759112838376,7.27,210.76,210.67,1.02647216]
[1759112839677,4.2691,210.73,210.67,1.02647216]
[1759112842072,7.27,210.72,210.67,1.02647216]
[1759112842473,11.5391,210.73,210.67,1.02647216]
[1759112842674,7.27,210.7,210.67,1.02647216]
[1759112842880,66.4013,210.75,210.61,359.76799439]
[1759112842881,7.27,210.72,210.63,5.22000153]
[1759112843173,4.2701,210.68,210.61,409.43225241]
[1759112843378,11.5401,210.68,210.61,372.21799592]
[1759112843567,7.27,210.68,210.61,359.76799439]
[1759112843769,7.46,210.69,210.61,14.42799439]
[1759112843973,7.46,210.69,210.6,5.22000153]
[1759112844585,11.7303,210.66,210.6,19.39098101]
[1759112844785,11.7303,210.66,210.58,5.22000153]
[1759112846584,11.7303,210.66,210.62,3.94675596]
[1759112846891,7.46,210.63,210.61,3.94675596]
[1759112847186,7.46,210.63,210.6,3.94675596]
[1759112847378,4.2708,210.64,210.6,3.94675596]
[1759112847688,7.46,210.61,210.59,3.94675596]
[1759112848386,7.46,210.61,210.58,3.94675596]
[1759112848775,4.2716,210.6,210.58,3.94675596]
[1759112848978,7.46,210.6,210.55,3.94675596]
[1759112849181,7.46,210.6,210.53,3.94675596]
[1759112849382,4.2724,210.56,210.53,3.94675596]
[1759112849586,7.46,210.55,210.53,18.09253185]
[1759112849888,4.2724,210.56,210.53,18.09253185]
[1759112850184,7.46,210.55,210.53,18.09253185]
[1759112850783,66.4499,210.59,210.47,112.09437526]
[1759112850784,11.7327,210.54,210.52,3.94675596]
[1759112850984,66.4599,210.56,210.5,3.94675596]
[1759112851179,7.46,210.51,210.5,3.94675596]
[1759112851580,7.46,210.51,210.49,3.94675596]
[1759112851785,4.2732,210.52,210.49,18.39152292]
[1759112852090,7.46,210.51,210.49,18.39152292]
[1759112852281,4.2732,210.52,210.47,3.94675596]
[1759112852480,4.2732,210.52,210.46,3.94675596]
[1759112852687,11.7332,210.52,210.46,3.94675596]
[1759112854288,7.46,210.49,210.45,3.94675596]
[1759112854588,66.4758,210.51,210.43,3.94675596]
[1759112854889,4.274,210.48,210.41,3.94675596]
[1759112855086,7.46,210.5,210.42,11.13675596]
[1759112855288,7.46,210.5,210.43,3.94675596]
[1759112855485,7.46,210.5,210.43,18.11065368]
[1759112856390,7.46,210.5,210.43,3.94675596]
[1759112857186,11.7329,210.54,210.45,2.15984409]
[1759112857393,11.7329,210.54,210.46,7.19]
[1759112857593,7.46,210.54,210.46,7.19]
[1759112858092,7.46,210.59,210.46,7.19]
[1759112858688,73.9108,210.59,210.46,7.19]
[1759112858885,73.9108,210.59,210.46,11.13675596]
[1759112859690,4.2726,210.55,210.46,11.13675596]
[1759112861394,4.273,210.53,210.46,11.13675596]
[1759112861601,4.273,210.53,210.46,7.19]
[1759112862595,7.46,210.54,210.46,7.19]
[1759112864594,4.2731,210.53,210.46,7.19]
[1759112864998,7.46,210.54,210.46,7.19]
[1759112865499,11.7334,210.51,210.45,2.15984409]
[1759112867398,4.2729,210.54,210.46,7.19]
[1759112868603,11.7329,210.54,210.46,7.19]
[1759112868798,4.2731,210.53,210.46,7.19]
[1759112868988,7.46,210.54,210.46,7.19]
[1759112871397,11.7337,210.5,210.44,2.15984409]
[1759112876692,7.46,210.5,210.43,18.42350141]
[1759112876895,7.82,210.46,210.43,14.47674545]
[1759112877101,7.82,210.46,210.39,3.94675596]
[1759112877302,4.2756,210.41,210.37,3.94675596]
[1759112877605,7.82,210.4,210.36,3.94675596]
[1759112877805,7.82,210.4,210.36,18.19661547]
[1759112878398,4.2756,210.41,210.36,18.19661547]
[1759112878606,4.275,210.44,210.38,3.94675596]
[1759112878802,4.275,210.44,210.34,2.15984409]
[1759112878803,4.275,210.44,210.39,11.17675596]
[1759112879004,12.095,210.44,210.39,7.23]
[1759112879205,12.095,210.44,210.39,11.17675596]
[1759112879612,4.2744,210.46,210.4,11.17675596]
[1759112879902,12.0944,210.46,210.41,11.17675596]
[1759112880601,7.82,210.45,210.42,3.94675596]
[1759112880808,7.82,210.45,210.41,11.17675596]
[1759112881108,7.82,210.45,210.41,11.16696345]
[1759112881312,7.82,210.45,210.42,3.93696345]
[1759112882110,7.82,210.45,210.43,3.93696345]
[1759112882311,7.82,210.45,210.42,3.93696345]
[1759112883008,4.2748,210.45,210.42,3.93696345]
[1759112883204,7.82,210.44,210.4,3.93696345]
[1759112883403,7.82,210.44,210.38,3.93696345]
[1759112883610,7.82,210.44,210.35,3.93696345]
[1759112883802,7.82,210.44,210.35,18.29298602]
[1759112884608,4.2754,210.41,210.35,18.29298602]
[1759112885706,7.82,210.44,210.37,11.16696345]
[1759112886008,4.2744,210.46,210.38,3.93696345]
[1759112886212,4.2744,210.46,210.41,3.93696345]
[1759112886404,4.2744,210.46,210.41,11.16696345]
[1759112886604,12.0944,210.46,210.41,11.16696345]
[1759112887006,4.2744,210.46,210.41,11.16696345]
[1759112887211,7.82,210.48,210.4,3.93696345]
[1759112887404,7.82,210.48,210.41,3.93696345]
[1759112887710,7.82,210.48,210.4,3.93696345]
[1759112888710,12.0946,210.45,210.4,11.16696345]
[1759112888906,7.82,210.46,210.4,3.93696345]
[1759112889105,7.82,210.46,210.38,3.93696345]
[1759112889311,4.2751,210.43,210.39,3.93696345]
[1759112889511,4.2751,210.43,210.39,11.16696345]
[1759112889806,12.0951,210.43,210.39,11.16696345]
[1759112890006,4.2746,210.46,210.4,11.16696345]
[1759112890403,4.2746,210.46,210.42,7.23]
[1759112890805,12.0946,210.46,210.41,3.93696345]
[1759112891013,12.0946,210.46,210.41,11.16696345]
[1759112891210,12.0946,210.46,210.42,3.93696345]
[1759112892605,2.15984409,210.53,210.42,11.80696345]
[1759112892807,4.274,210.49,210.44,3.93696345]
[1759112893009,7.28,210.47,210.44,3.93696345]
[1759112893608,7.28,210.5,210.44,3.93696345]
[1759112893810,11.5546,210.46,210.44,3.93696345]
[1759112894111,11.5546,210.46,210.43,3.93696345]
[1759112894312,4.2746,210.46,210.44,3.93696345]
[1759112896214,11.5546,210.46,210.44,3.93696345]
[1759112896611,4.2746,210.46,210.44,3.93696345]
[1759112897012,4.2741,210.48,210.44,3.93696345]
[1759112897213,11.5541,210.48,210.44,3.93696345]
[1759112897411,7.28,210.48,210.44,3.93696345]
[1759112897714,4.2744,210.47,210.44,3.93696345]
[1759112897914,4.2744,210.47,210.44,11.80696345]
[1759112898113,4.2744,210.47,210.44,11.82995878]
[1759112898313,4.2744,210.47,210.44,3.95995878]
[1759112898716,11.5544,210.47,210.44,3.95995878]
[1759112899812,4.2746,210.46,210.44,3.95995878]
[1759112900018,7.28,210.45,210.44,3.95995878]
[1759112900517,4.2746,210.46,210.44,3.95995878]
[1759112901114,1.38666261,210.53,210.44,7.87]
[1759112901315,1.38666261,210.53,210.47,3.9552218]
[1759112901707,4.2736,210.51,210.48,7.87]
[1759112902915,11.5536,210.51,210.47,7.87]
[1759112903215,11.5536,210.51,210.47,11.8252218]
[1759112904417,4.2736,210.51,210.48,7.67]
[1759112905021,12.1836,210.51,210.47,3.9552218]
[1759112905213,12.1836,210.51,210.47,11.6252218]
[1759112906119,12.1836,210.51,210.48,3.9552218]
[1759112906320,12.1829,210.54,210.5,7.67]
[1759112906621,1.38666261,210.55,210.49,3.9552218]
[1759112906918,9.29666261,210.55,210.49,3.9552218]
[1759112907219,4.2731,210.53,210.49,3.9552218]
[1759112907526,7.91,210.52,210.49,3.9552218]
[1759112908515,7.91,210.5,210.49,3.9552218]
[1759112908814,4.2734,210.51,210.48,3.9552218]
[1759112909114,1.38666261,210.53,210.48,3.9552218]
[1759112909115,4.2738,210.49,210.48,3.9552218]
[1759112909314,4.2738,210.49,210.47,3.9552218]
[1759112909508,1.38666261,210.51,210.46,3.9552218]
[1759112909509,7.91,210.5,210.46,3.9552218]
[1759112909710,1.38666261,210.51,210.46,3.9552218]
[1759112909910,7.91,210.5,210.46,3.9552218]
[1759112910121,1.38666261,210.51,210.46,3.9552218]
[1759112910421,7.91,210.51,210.46,11.6252218]
[1759112910621,7.91,210.51,210.47,3.9552218]
[1759112910823,7.91,210.51,210.48,3.9552218]
[1759112911022,4.2736,210.5,210.48,3.9552218]
[1759112911218,4.2736,210.5,210.48,11.6252218]
[1759112911921,4.2736,210.5,210.48,7.67]
[1759112912120,4.2736,210.5,210.48,11.6252218]
[1759112915431,4.2736,210.5,210.48,3.9552218]
[1759112915932,12.1836,210.5,210.48,3.9552218]
[1759112916234,7.91,210.49,210.48,3.9552218]
[1759112917535,7.91,210.47,210.46,3.9552218]
[1759112917842,4.274,210.48,210.45,11.6252218]
[1759112918036,4.274,210.48,210.47,3.9552218]
[1759112919332,12.184,210.48,210.47,3.9552218]
[1759112921733,4.2736,210.5,210.47,3.9552218]
[1759112921938,7.91,210.49,210.47,3.9552218]
[1759112922237,7.91,210.5,210.47,3.9552218]
[1759112922936,1.38666261,210.51,210.47,3.9552218]
[1759112923135,7.91,210.5,210.48,3.9552218]
[1759112923334,1.38666261,210.5,210.48,3.9552218]
[1759112923538,7.91,210.49,210.48,3.9552218]
[1759112927340,4.2737,210.5,210.49,7.67]
[1759112927540,4.2731,210.53,210.5,7.67]
[1759112927734,12.1831,210.53,210.5,11.63258353]
[1759112927941,12.1831,210.53,210.51,3.96258353]
[1759112930040,4.2731,210.53,210.51,3.96258353]
[1759112930344,4.2726,210.55,210.51,7.67]
[1759112930543,4.2726,210.55,210.54,3.96157022]
[1759112932743,66.4385,210.63,210.54,7.67]
[1759112932744,74.3485,210.63,210.54,7.67]
[1759112932943,67.82696261,210.62,210.57,3.9590537]
[1759112933144,4.2721,210.58,210.57,3.9590537]
[1759112933348,1.38666261,210.6,210.55,3.9590537]
[1759112933546,1.38666261,210.58,210.55,3.9590537]
[1759112933747,67.83356261,210.6,210.55,3.9590537]
[1759112933946,67.82696261,210.62,210.56,11.1690537]
[1759112934150,7.92,210.61,210.57,3.9590537]
[1759112934952,67.82696261,210.62,210.57,3.9590537]
[1759112935549,4.2719,210.59,210.57,18.07651059]
[1759112935850,7.92,210.58,210.57,18.07651059]
[1759112936049,7.92,210.63,210.56,3.9590537]
[1759112936244,7.92,210.6,210.57,3.9590537]
[1759112937144,4.2718,210.6,210.56,3.9590537]
[1759112937351,4.2718,210.6,210.58,7.21]
[1759112938154,4.2712,210.62,210.59,7.21]
[1759112939246,7.92,210.64,210.6,7.21]
[1759112939247,4.2708,210.64,210.6,7.21]
[1759112940155,12.1908,210.64,210.59,5.34571631]
[1759112940451,4.2704,210.66,210.6,7.21]
[1759112940755,12.1904,210.66,210.62,7.21]
[1759112940951,12.1904,210.66,210.62,11.1690537]
[1759112940952,4.2704,210.66,210.62,11.1690537]
[1759112941149,4.2704,210.66,210.62,3.9590537]
[1759112941351,4.2704,210.66,210.63,3.9590537]
[1759112941548,4.2704,210.66,210.64,7.21]
[1759112942160,4.2704,210.66,210.63,7.21]
[1759112942352,4.2704,210.66,210.62,3.9590537]
[1759112942550,4.2707,210.65,210.62,7.21]
[1759112943556,4.271,210.63,210.62,7.21]
[1759112943760,4.271,210.63,210.6,11.1690537]
[1759112944256,4.271,210.63,210.61,7.21]
[1759112945556,4.2706,210.65,210.6,7.21]
[1759112945858,4.2706,210.65,210.59,12.55571631]
[1759112948062,4.2706,210.65,210.59,11.1690537]
[1759112948360,4.2706,210.65,210.56,122.5924]
[1759112948361,4.2706,210.65,210.61,7.21]
[1759112949460,4.2709,210.64,210.6,1.38666261]
[1759112949658,4.2709,210.64,210.61,7.21]
[1759112951757,66.4203,210.69,210.58,3.9590537]
[1759112951758,74.351,210.66,210.58,3.9590537]
[1759112951958,7.3,210.64,210.56,8.59666261]
[1759112952163,7.3,210.64,210.56,12.55571631]
[1759112952652,7.3,210.64,210.56,8.59666261]